bitfinex/quotes_SOLUSD_20240905
["timestamp","ask_amount","ask_price","bid_price","bid_amount"]
[1725554504494,7.6436,130.83,130.8,46.52874396]
[1725554505007,35.2305,130.89,130.8,64.1128]
[1725554505302,7.6417,130.86,130.82,7.6437]
[1725554505469,35.2305,130.89,130.83,54.1717073]
[1725554505673,35.2305,130.89,130.83,52.6434]
[1725554506281,7.6415,130.87,130.83,45.0]
[1725554506802,7.6435,130.83,130.79,19.1133]
[1725554507015,7.6435,130.83,130.8,45.0]
[1725554508980,19.1032,130.87,130.8,45.0]
[1725554509182,20.0,130.86,130.8,45.0]
[1725554510498,7.6423,130.85,130.81,7.6446]
[1725554510683,7.643,130.84,130.8,45.0]
[1725554511677,7.6443,130.82,130.78,7.6463]
[1725554511897,7.6443,130.82,130.79,1.52887972]
[1725554513025,19.1059,130.85,130.77,7.6468]
[1725554513184,7.6443,130.82,130.78,52.6463]
[1725554513597,7.6443,130.82,130.79,1.52887526]
[1725554517289,7.6443,130.82,130.78,71.7623]
[1725554517914,7.6443,130.82,130.79,1.52886856]
[1725554519691,19.1059,130.85,130.8,1.52886899]
[1725554519692,7.6436,130.83,130.8,1.52886899]
[1725554519912,7.6436,130.83,130.79,7.6454]
[1725554520205,7.6442,130.82,130.78,71.7622]
[1725554520599,7.6442,130.82,130.79,9.17455747]
[1725554520800,7.6442,130.82,130.8,1.52882717]
[1725554521313,7.6426,130.85,130.81,7.6443]
[1725554521489,20.0,130.84,130.82,45.0]
[1725554521690,27.643,130.84,130.82,45.0]
[1725554522002,27.643,130.84,130.81,45.0]
[1725554522601,20.0,130.84,130.81,45.0]
[1725554522800,20.0,130.87,130.8,7.645]
[1725554523519,7.6432,130.84,130.8,7.645]
[1725554524101,7.6435,130.83,130.8,7.645]
[1725554524822,7.6435,130.83,130.79,26.7588]
[1725554525402,7.6442,130.82,130.79,19.1131]
[1725554526517,7.6436,130.83,130.79,26.7588]
[1725554526836,16.1291,130.89,130.81,19.1116]
[1725554527001,16.1291,130.89,130.85,19.1058]
[1725554527195,18.60730391,130.92,130.86,1.52809226]
[1725554527505,7.639,130.91,130.86,7.6412]
[1725554527842,6.1225,130.94,130.87,19.102]
[1725554528121,7.6371,130.94,130.89,7.6398]
[1725554528294,15.5163,130.96,130.89,7.6398]
[1725554528295,23.1523,130.96,130.9,54.16686781]
[1725554528500,23.1523,130.96,130.9,52.6394]
[1725554529195,7.636,130.96,130.91,9.16594771]
[1725554529397,7.6353,130.97,130.92,45.0]
[1725554529810,7.6363,130.96,130.9,7.6393]
[1725554530116,7.6363,130.96,130.91,45.0]
[1725554530311,20.0,130.95,130.91,45.0]
[1725554530621,20.0,130.95,130.89,26.7389]
[1725554530924,20.0,130.98,130.89,26.7389]
[1725554531301,39.0879,130.98,130.87,6.4766]
[1725554531517,7.6383,130.92,130.87,14.1175]
[1725554535230,7.6406,130.88,130.84,7.6424]
[1725554535552,39.0935,130.94,130.8,40.8334]
[1725554535553,7.6417,130.86,130.8,40.8334]
[1725554535728,7.6423,130.85,130.81,7.6445]
[1725554535907,7.6423,130.85,130.8,25.66]
[1725554536501,27.6413,130.87,130.82,7.6439]
[1725554536732,20.0,130.87,130.84,7.6428]
[1725554536929,7.64,130.89,130.85,1.52819288]
[1725554537305,7.64,130.89,130.85,54.17049288]
[1725554537523,7.64,130.89,130.86,1.52810782]
[1725554537927,7.6398,130.9,130.85,52.6423]
[1725554538232,7.6401,130.89,130.85,52.6422]
[1725554540427,7.6395,130.9,130.85,52.6422]
[1725554540632,20.0,130.89,130.85,52.6422]
[1725554541326,20.0,130.89,130.86,7.6415]
[1725554541528,41.155,130.96,130.86,25.161]
[1725554541829,7.6393,130.91,130.87,45.0]
[1725554542133,41.155,130.96,130.87,45.0]
[1725554542134,7.6395,130.9,130.87,45.0]
[1725554542318,7.639,130.91,130.87,45.0]
[1725554542527,7.639,130.91,130.88,1.5278654]
[1725554542829,7.639,130.91,130.87,52.6411]
[1725554543208,7.6384,130.92,130.88,7.6401]
[1725554543422,20.0,130.91,130.88,9.16789205]
[1725554543627,20.0,130.91,130.88,7.6401]
[1725554543834,7.6397,130.9,130.87,45.0]
[1725554544829,7.6402,130.89,130.85,7.6422]
[1725554545536,7.6395,130.9,130.85,26.7478]
[1725554545834,27.6392,130.91,130.87,7.6411]
[1725554546230,27.6392,130.91,130.86,7.6415]
[1725554546535,27.6392,130.91,130.87,45.0]
[1725554547241,7.6411,130.87,130.83,23.9684]
[1725554548712,7.6405,130.88,130.84,7.6425]
[1725554548933,7.64,130.89,130.85,7.6422]
[1725554549116,20.0,130.88,130.86,1.52799575]
[1725554549939,20.0,130.88,130.85,7.6422]
[1725554550635,7.6395,130.9,130.86,7.6415]
[1725554550837,16.3907,130.91,130.88,19.1011]
[1725554551027,20.0,130.9,130.87,9.16881626]
[1725554551228,20.0,130.9,130.88,1.52792363]
[1725554551914,27.6396,130.9,130.86,7.6415]
[1725554552242,27.6396,130.9,130.87,1.52795437]
[1725554552613,7.6389,130.91,130.87,9.16895437]
[1725554552838,7.6389,130.91,130.87,7.641]
[1725554553138,7.6389,130.91,130.88,1.49992437]
[1725554553522,7.6383,130.92,130.88,7.6405]
[1725554553840,3.4215,130.94,130.88,7.6405]
[1725554554140,3.4215,130.94,130.87,26.7436]
[1725554554351,3.4215,130.94,130.88,52.6405]
[1725554554555,3.4215,130.94,130.89,1.52770627]
[1725554554726,3.4215,130.94,130.88,52.6405]
[1725554555141,39.0917,130.95,130.88,52.6405]
[1725554555345,7.6384,130.92,130.89,1.52771427]
[1725554555557,7.6384,130.92,130.88,52.6405]
[1725554556765,7.6389,130.91,130.88,45.0]
[1725554557053,39.0917,130.95,130.88,45.0]
[1725554557259,7.6389,130.91,130.87,32.8116]
[1725554557760,7.6389,130.91,130.88,7.6405]
[1725554557942,39.0917,130.95,130.87,25.1708]
[1725554557943,20.0,130.95,130.89,19.0998]
[1725554558259,20.0,130.94,130.89,19.0998]
[1725554558557,20.0,130.94,130.91,7.6387]
[1725554558777,27.6366,130.95,130.9,7.6391]
[1725554559251,7.6377,130.93,130.89,26.7397]
[1725554559447,7.6377,130.93,130.9,45.0]
[1725554560360,7.6372,130.94,130.9,52.6393]
[1725554560565,27.6369,130.95,130.91,7.6386]
[1725554560728,27.6369,130.95,130.91,8.90937762]
[1725554561128,20.0,130.95,130.92,7.6381]
[1725554561330,27.6365,130.95,130.91,26.7351]
[1725554561761,20.0,130.95,130.89,391.2]
[1725554561943,7.6391,130.91,130.89,391.2]
[1725554562137,7.6379,130.93,130.89,398.8399]
[1725554562343,20.0,130.92,130.9,1.52764566]
[1725554562551,20.0,130.95,130.9,7.6393]
[1725554562552,7.6372,130.94,130.9,7.6393]
[1725554562763,20.0,130.93,130.9,7.6393]
[1725554562963,20.0,130.93,130.91,7.6383]
[1725554563144,20.0,130.93,130.9,7.639]
[1725554563949,20.0,130.93,130.89,410.2996]
[1725554564148,7.6378,130.93,130.9,45.0]
[1725554564344,7.6382,130.92,130.89,410.2996]
[1725554564738,7.6382,130.92,130.89,19.0996]
[1725554565153,20.0,130.96,130.9,1.52762895]
[1725554565154,7.6378,130.93,130.9,1.52762895]
[1725554565361,20.0,130.96,130.91,19.097]
[1725554565576,25.9781995,130.99,130.91,19.097]
[1725554565847,7.6363,130.96,130.92,7.638]
[1725554566055,25.9781995,130.99,130.91,26.7356]
[1725554566056,7.6369,130.95,130.91,26.7356]
[1725554566268,7.6369,130.95,130.92,45.0]
[1725554566468,16.2273,130.99,130.92,45.0]
[1725554566767,7.6357,130.97,130.93,7.6375]
[1725554567165,20.0,130.96,130.93,7.6375]
[1725554567364,20.0,130.96,130.93,19.0932]
[1725554567546,7.6356,130.97,130.93,26.7307]
[1725554567748,20.0,130.96,130.93,26.7307]
[1725554568470,27.6359,130.96,130.93,26.7307]
[1725554568764,27.6359,130.96,130.92,45.0]
[1725554568765,20.0,130.96,130.92,59.0353]
[1725554569072,7.636,130.96,130.92,59.0353]
[1725554569895,7.6349,130.98,130.94,7.6366]
[1725554570070,7.6342,130.99,130.94,7.637]
[1725554570257,20.0,130.98,130.95,52.6364]
[1725554570760,20.0,130.98,130.96,1.5269046]
[1725554570950,20.0,130.99,130.96,9.1628046]
[1725554572370,27.6341,130.99,130.96,9.1628046]
[1725554572668,27.6341,130.99,130.97,1.52685263]
[1725554573579,27.6341,130.99,130.96,1.52685394]
[1725554574751,7.6365,130.95,130.93,16.4933]
[1725554574956,7.6361,130.96,130.92,405.235]
[1725554575153,20.0,130.99,130.93,26.7309]
[1725554575472,7.6354,130.97,130.93,26.7309]
[1725554575682,7.6349,130.98,130.94,7.6369]
[1725554575857,20.0,130.97,130.94,7.6369]
[1725554576063,27.6343,130.99,130.95,1.52702933]
[1725554576363,20.0,130.99,130.94,19.0912]
[1725554576563,3.74534894,131.03,130.94,19.0912]
[1725554576564,7.6353,130.97,130.94,19.0912]
[1725554576772,7.6347,130.98,130.94,19.0912]
[1725554577079,7.6345,130.99,130.94,7.6368]
[1725554577255,20.0,130.98,130.94,7.6368]
[1725554577657,20.0,130.98,130.95,9.16336628]
[1725554577982,20.0,130.98,130.96,9.16249179]
[1725554578163,7.6339,131.0,130.96,9.16249179]
[1725554578374,20.0,130.99,130.96,9.16249179]
[1725554578674,7.6331,131.01,130.97,52.6352]
[1725554578846,20.0,131.0,130.98,1.52669821]
[1725554579353,20.0,131.0,130.97,52.6352]
[1725554579752,20.0,131.0,130.98,1.52670713]
[1725554579978,20.0,131.0,130.98,9.16120713]
[1725554580264,38.86328584,131.04,130.97,64.0876]
[1725554580265,20.0,131.01,130.97,64.0876]
[1725554580447,7.6341,131.0,130.96,7.6357]
[1725554580653,20.0,131.03,130.95,16.1285]
[1725554581277,7.6342,130.99,130.95,23.7645]
[1725554581652,7.6337,131.0,130.96,9.16265235]
[1725554581986,7.6337,131.0,130.97,45.0]
[1725554582274,7.6337,131.0,130.96,7.6358]
[1725554582473,7.6337,131.0,130.97,1.52675995]
[1725554582674,7.633,131.01,130.97,54.16185995]
[1725554582882,20.0,131.0,130.97,52.6351]
[1725554583079,20.0,131.0,130.97,45.0]
[1725554583265,20.0,131.0,130.97,52.6353]
[1725554583448,20.0,131.0,130.98,9.16127245]
[1725554583648,7.6325,131.02,130.98,9.16127245]
[1725554583649,7.6325,131.02,130.99,1.52663784]
[1725554583959,7.632,131.03,130.99,54.16073784]
[1725554584273,20.0,131.02,130.99,54.16073784]
[1725554587988,7.633,131.01,130.98,33.0159]
[1725554588197,27.6327,131.02,130.99,1.52659801]
[1725554589191,27.6327,131.02,130.98,33.0159]
[1725554589594,7.6331,131.01,130.99,1.52653116]
[1725554589770,7.6331,131.01,130.98,33.0159]
[1725554589771,7.6331,131.01,130.98,25.3814]
[1725554590291,7.6331,131.01,130.99,1.52660595]
[1725554590583,20.0,131.02,130.99,1.52659901]
[1725554590584,27.6327,131.02,130.99,1.52659901]
[1725554590762,27.6327,131.02,130.98,33.016]
[1725554591461,20.0,131.02,130.98,25.3814]
[1725554591888,7.6332,131.01,130.98,6.2948]
[1725554592094,7.6332,131.01,130.98,13.9295]
[1725554592296,27.6326,131.02,130.98,13.9295]
[1725554592698,20.0,131.02,131.0,7.6332]
[1725554592903,20.0,131.03,131.01,1.52636396]
[1725554593104,8.4905171,131.04,131.01,1.52636396]
[1725554593605,7.632,131.03,131.0,7.6332]
[1725554593802,7.632,131.03,131.01,1.52634271]
[1725554594099,7.632,131.03,130.99,52.634]
[1725554594404,7.632,131.03,131.0,1.52646318]
[1725554594623,8.4906171,131.04,131.0,9.15986318]
[1725554594981,8.4906171,131.04,131.01,52.6329]
[1725554595180,8.4906171,131.04,131.02,1.52623517]
[1725554595403,0.8589171,131.04,131.02,1.52623517]
[1725554595708,20.8589171,131.04,131.02,1.52623517]
[1725554596382,28.4902171,131.04,131.02,1.52623517]
[1725554596604,28.4902171,131.04,131.01,26.7148]
[1725554597588,28.4902171,131.04,131.01,19.082]
[1725554598401,28.4902171,131.04,131.02,1.52624347]
[1725554598716,0.8589171,131.04,131.02,1.52624347]
[1725554600411,0.8589171,131.04,131.0,17.38657535]
[1725554600701,7.6322,131.03,130.99,9.16047163]
[1725554602289,7.6325,131.02,130.99,9.16047163]
[1725554602609,7.6325,131.02,130.99,7.634]
[1725554602806,7.6325,131.02,131.0,1.52645925]
[1725554603010,7.633,131.01,130.98,33.015]
[1725554603178,7.633,131.01,130.98,25.3805]
[1725554603378,0.8589171,131.04,130.95,429.3815]
[1725554603379,7.6344,130.99,130.95,410.2898]
[1725554603578,7.6344,130.99,130.95,26.7259]
[1725554604087,7.6354,130.97,130.94,29.4681]
[1725554604409,7.6354,130.97,130.94,21.8312]
[1725554604789,7.6349,130.98,130.95,1.52702149]
[1725554605278,7.6349,130.98,130.95,45.0]
[1725554607898,35.2280171,131.04,130.96,1.5269686]
[1725554608108,7.634,131.0,130.96,9.1624686]
[1725554608411,20.0,130.99,130.96,9.1624686]
[1725554609082,27.6342,130.99,130.95,71.7272]
[1725554610207,20.0,130.99,130.96,9.16271635]
[1725554610403,27.6342,130.99,130.95,71.7269]
[1725554610901,20.0,130.99,130.96,7.6355]
[1725554611105,7.6342,130.99,130.96,7.6355]
[1725554611294,7.6347,130.98,130.95,71.7272]
[1725554612006,20.0,131.01,130.95,45.0]
[1725554612205,7.635,130.98,130.95,45.0]
[1725554612524,19.0842,131.0,130.94,21.8312]
[1725554612690,7.6359,130.96,130.94,21.8312]
[1725554613016,7.6355,130.97,130.94,21.8312]
[1725554613388,7.6355,130.97,130.94,23.35830499]
[1725554614014,7.6359,130.96,130.92,26.733]
[1725554614189,7.6365,130.95,130.93,45.0]
[1725554614593,7.6365,130.95,130.92,19.0949]
[1725554615125,7.6365,130.95,130.91,7.6384]
[1725554615894,19.087,130.98,130.9,21.7423]
[1725554616192,7.6373,130.94,130.9,21.7423]
[1725554616613,7.6373,130.94,130.9,29.3815]
[1725554616892,20.0,130.97,130.89,26.7387]
[1725554616893,7.6378,130.93,130.89,26.7387]
[1725554617605,7.6386,130.92,130.88,7.6404]
[1725554618489,7.6388,130.91,130.87,38.04290305]
[1725554618688,7.6388,130.91,130.86,19.1034]
[1725554618689,20.0,130.91,130.86,19.1034]
[1725554618919,7.64,130.89,130.86,19.1034]
[1725554619290,20.0,130.91,130.87,1.5279785]
[1725554619493,7.6382,130.92,130.87,19.1026]
[1725554619696,27.6389,130.91,130.87,26.7435]
[1725554619905,7.6389,130.91,130.87,26.7435]
[1725554620112,20.0,130.9,130.87,26.7435]
[1725554621002,27.6394,130.9,130.87,19.1026]
[1725554621203,20.0,130.9,130.84,26.7491]
[1725554621417,20.0,130.92,130.84,26.7491]
[1725554622297,7.6402,130.89,130.85,7.6421]
[1725554623400,20.0,130.92,130.86,20.63181465]
[1725554623600,27.6383,130.92,130.88,7.6401]
[1725554623929,27.6383,130.92,130.87,52.6409]
[1725554624795,27.6382,130.92,130.88,26.7413]
[1725554625197,27.6382,130.92,130.88,19.1009]
[1725554625401,7.6392,130.91,130.85,19.1045]
[1725554625639,20.0,130.9,130.86,45.0]
[1725554626716,20.0,130.9,130.86,52.6415]
[1725554626915,20.0,130.9,130.87,7.6409]
[1725554627637,20.0,130.91,130.88,9.16823812]
[1725554627799,20.0,130.92,130.88,9.16823812]
[1725554628106,27.6383,130.92,130.88,7.6404]
[1725554633336,20.0,130.92,130.87,19.1024]
[1725554633516,7.6394,130.91,130.87,19.1024]
[1725554633825,20.0,130.9,130.87,19.1024]
[1725554634031,20.0,130.9,130.86,45.0]
[1725554634333,20.0,130.9,130.86,52.6417]
[1725554634537,20.0,130.9,130.86,7.6417]
[1725554634538,7.6395,130.9,130.86,7.6417]
[1725554636716,7.6388,130.91,130.87,7.6409]
[1725554636917,20.0,130.9,130.87,52.6409]
[1725554640336,34.6169,130.94,130.83,41.8916]
[1725554640337,7.6405,130.88,130.83,41.8916]
[1725554640541,7.6402,130.89,130.84,7.6425]
[1725554640714,7.6396,130.9,130.84,10.00734954]
[1725554640918,20.0,130.89,130.86,7.6413]
[1725554649140,27.64,130.89,130.86,7.6413]
[1725554649844,27.64,130.89,130.85,26.7466]
[1725554650042,27.64,130.89,130.86,45.0]
[1725554650938,7.64,130.89,130.86,45.0]
[1725554651138,15.5867,130.98,130.88,32.62024954]
[1725554651346,7.6374,130.94,130.9,7.6391]
[1725554651564,7.6374,130.94,130.91,1.52753192]
[1725554651856,7.6391,130.91,130.88,22.6129]
[1725554652070,7.6391,130.91,130.87,26.7435]
[1725554652071,7.6394,130.9,130.87,19.1027]
[1725554652844,7.6394,130.9,130.87,26.7438]
[1725554653745,7.6394,130.9,130.87,19.1027]
[1725554654226,7.6394,130.9,130.87,26.7438]
[1725554654830,7.6389,130.91,130.87,26.7438]
[1725554655342,20.0,130.9,130.87,26.7438]
[1725554655526,20.0,130.9,130.88,7.6405]
[1725554655722,35.4507,130.97,130.89,19.0987]
[1725554655963,35.4507,130.97,130.89,26.7383]
[1725554655964,7.6379,130.93,130.89,26.7383]
[1725554656252,27.6382,130.92,130.89,26.7383]
[1725554656931,20.0,130.92,130.87,1.5277077]
[1725554657255,7.6384,130.92,130.88,7.6405]
[1725554657552,7.6378,130.93,130.89,26.7397]
[1725554657722,20.0,130.92,130.89,26.7397]
[1725554658348,7.6378,130.93,130.9,9.16700417]
[1725554658525,7.6373,130.94,130.9,9.16700417]
[1725554658726,20.0,130.93,130.9,9.16700417]
[1725554659431,20.0,130.93,130.9,7.6393]
[1725554659835,35.451,130.97,130.9,7.6393]
[1725554659836,16.3615,130.97,130.91,1.52753478]
[1725554660076,16.3615,130.97,130.91,52.6385]
[1725554660369,7.6368,130.95,130.9,417.9363]
[1725554660538,7.6368,130.95,130.91,7.6387]
[1725554660738,35.5847,131.02,130.92,87.0902]
[1725554660936,39.20955077,131.02,130.92,87.0902]
[1725554661555,39.20955077,131.02,130.93,7.6372]
[1725554661556,7.6353,130.97,130.93,7.6372]
[1725554662537,35.5847,131.02,130.94,20.61947942]
[1725554662735,7.6348,130.98,130.94,28.25627942]
[1725554662935,20.0,130.97,130.94,28.25627942]
[1725554663659,20.0,130.97,130.94,19.0923]
[1725554663862,27.6354,130.97,130.94,19.0923]
[1725554664250,20.0,130.97,130.94,26.7293]
[1725554669284,20.0,130.97,130.95,54.16320792]
[1725554669475,20.0,130.97,130.95,52.6361]
[1725554669673,20.0,131.01,130.95,52.6361]
[1725554670277,7.6345,130.99,130.95,52.6361]
[1725554670782,27.635,130.98,130.94,26.7293]
[1725554670974,19.0839,131.0,130.93,7.6376]
[1725554671166,7.6354,130.97,130.93,7.6376]
[1725554672776,7.6354,130.97,130.92,52.09684954]
[1725554672777,7.6351,130.98,130.94,54.16403094]
[1725554673074,20.0,130.99,130.96,7.6358]
[1725554675388,7.6333,131.01,130.97,52.6351]
[1725554675683,20.0,131.0,130.97,52.6351]
[1725554675902,27.6335,131.0,130.96,7.6355]
[1725554676265,20.0,131.0,130.97,52.6351]
[1725554676879,27.6335,131.0,130.96,7.6357]
[1725554677585,27.6335,131.0,130.95,26.7262]
[1725554677789,7.6343,130.99,130.95,26.7262]
[1725554678200,7.6349,130.98,130.95,19.0899]
[1725554678688,7.6343,130.99,130.95,19.0899]
[1725554680084,7.6351,130.98,130.94,7.6368]
[1725554680584,7.6345,130.99,130.95,71.7272]
[1725554680883,7.6345,130.99,130.95,26.7272]
[1725554681068,7.636,130.96,130.94,391.2]
[1725554681267,19.0854,130.99,130.94,391.2]
[1725554681688,20.0,130.98,130.94,391.2]
[1725554681988,7.6365,130.95,130.94,391.2]
[1725554682163,7.6361,130.96,130.94,391.2]
[1725554683282,20.0,130.98,130.95,1.52727674]
[1725554683584,20.0,130.98,130.94,410.2925]
[1725554683585,20.0,131.01,130.96,1.52701694]
[1725554683787,7.6336,131.0,130.95,45.0]
[1725554684590,7.6336,131.0,130.95,64.09]
[1725554684778,7.6336,131.0,130.96,1.52690308]
[1725554685482,7.6334,131.01,130.97,7.6352]
[1725554686176,20.0,131.0,130.97,7.6352]
[1725554686564,20.0,131.0,130.96,7.6357]
[1725554686770,7.6328,131.02,130.97,54.16158259]
[1725554686977,20.0,131.01,130.97,7.6348]
[1725554687868,20.0,131.01,130.98,7.6346]
[1725554688086,27.6324,131.02,130.98,7.6346]
[1725554689578,20.0,131.02,130.98,19.0866]
[1725554689988,0.8589171,131.04,130.98,19.0866]
[1725554691297,7.6324,131.02,130.98,26.7211]
[1725554691672,20.0,131.01,130.96,412.9875]
[1725554691890,7.6326,131.02,130.97,71.7228]
[1725554692094,7.6319,131.03,130.99,7.6341]
[1725554692391,0.8589171,131.04,131.0,46.5263752]
[1725554692788,0.8589171,131.04,131.01,7.6329]
[1725554692971,0.8589171,131.04,131.02,1.52623251]
[1725554694182,0.8589171,131.04,131.02,46.52623251]
[1725554694872,0.8589171,131.04,131.02,45.0]
[1725554695383,0.8589171,131.04,131.01,29.3202]
[1725554695590,0.8589171,131.04,131.01,21.6873]
[1725554695800,8.4905171,131.04,131.01,21.6873]
[1725554696007,0.8589171,131.04,131.01,21.6873]
[1725554696666,0.8589171,131.04,130.99,391.2]
[1725554696870,7.6326,131.02,130.99,391.2]
[1725554697873,7.6321,131.03,130.99,398.8338]
[1725554698076,7.6321,131.03,131.0,45.0]
[1725554699399,7.6321,131.03,131.01,1.52637843]
[1725554699576,8.4905171,131.04,131.0,52.6334]
[1725554699779,20.0,131.03,131.0,52.6334]
[1725554700189,20.0,131.03,131.0,71.716]
[1725554700577,0.8589171,131.04,131.01,7.6324]
[1725554700779,0.8589171,131.04,131.0,64.0826]
[1725554701003,7.6326,131.02,130.98,398.8343]
[1725554701198,0.8589171,131.04,130.98,391.2]
[1725554701199,7.6337,131.0,130.98,391.2]
[1725554701505,7.6341,130.99,130.98,391.2]
[1725554701805,17.3113171,131.04,130.94,40.8543]
[1725554702101,19.0812,131.02,130.94,40.8543]
[1725554702284,7.6354,130.97,130.94,40.8543]
[1725554702496,7.636,130.96,130.92,7.638]
[1725554702802,7.6351,130.98,130.94,7.637]
[1725554703188,7.6354,130.97,130.93,26.7309]
[1725554703503,15.0844,131.0,130.87,412.8894]
[1725554703706,15.0844,131.0,130.87,21.6894]
[1725554703707,7.6394,130.9,130.87,21.6894]
[1725554704089,7.6394,130.9,130.85,398.8419]
[1725554704290,7.6406,130.88,130.85,391.2]
[1725554704501,7.6406,130.88,130.84,25.5454]
[1725554704705,7.6412,130.87,130.84,6.4387]
[1725554704902,35.1403,130.93,130.84,6.4387]
[1725554705110,20.0,130.92,130.84,6.4387]
[1725554705417,26.3172,130.92,130.83,15.1582]
[1725554705619,7.6407,130.88,130.84,1.52839537]
[1725554705803,20.0,130.87,130.84,1.52839537]
[1725554706202,20.0,130.87,130.83,22.8017]
[1725554706541,7.6407,130.88,130.84,1.52826238]
[1725554706820,27.6411,130.87,130.83,15.1582]
[1725554707001,27.6411,130.87,130.82,7.6439]
[1725554707204,27.6411,130.87,130.83,1.52839742]
[1725554707921,20.0,130.87,130.83,7.643]
[1725554708237,27.6406,130.88,130.83,7.643]
[1725554709426,20.0,130.88,130.83,19.1081]
[1725554709728,20.0,130.88,130.84,52.6427]
[1725554710027,7.6387,130.92,130.87,7.641]
[1725554710200,16.0451,130.93,130.87,19.1016]
[1725554710399,7.6389,130.91,130.87,19.1016]
[1725554710617,6.2211,130.95,130.88,1.52782329]
[1725554711195,7.6378,130.93,130.89,1.52777811]
[1725554712013,34.2996,130.96,130.89,1.52777811]
[1725554712014,15.2097,130.96,130.9,9.1670595]
[1725554712217,6.1218,130.98,130.91,7.6383]
[1725554712424,6.1218,130.98,130.91,52.6383]
[1725554712807,7.6365,130.95,130.91,52.6383]
[1725554713016,35.4709,130.99,130.92,1.52734874]
[1725554713214,35.4709,130.99,130.92,9.16534874]
[1725554713545,7.6357,130.97,130.93,9.16484983]
[1725554714021,7.6357,130.97,130.93,1.52724983]
[1725554714226,7.6349,130.98,130.94,7.6369]
[1725554714529,7.6349,130.98,130.95,1.52707609]
[1725554714714,16.4121,131.03,130.96,1.52698355]
[1725554714919,16.4121,131.03,130.96,9.16268355]
[1725554715219,7.6324,131.02,130.97,52.6352]
[1725554715423,7.6324,131.02,130.98,1.52652145]
[1725554715614,7.6319,131.03,130.98,9.16122145]
[1725554715812,7.6319,131.03,130.99,1.52654857]
[1725554716716,7.6325,131.02,130.98,7.6347]
[1725554716921,7.6325,131.02,130.99,1.52657072]
[1725554717829,7.633,131.01,130.97,71.7228]
[1725554718324,0.8589171,131.04,130.97,65.61431731]
[1725554718531,7.6319,131.03,130.98,7.6345]
[1725554718724,27.6326,131.02,130.98,7.6345]
[1725554719033,7.6326,131.02,130.97,71.7227]
[1725554719323,7.6331,131.01,130.97,45.0]
[1725554719529,7.6331,131.01,130.97,46.52670532]
[1725554719732,7.6331,131.01,130.97,45.0]
[1725554720232,7.6337,131.0,130.97,45.0]
[1725554720531,7.6337,131.0,130.96,7.6358]
[1725554721138,7.6341,130.99,130.96,1.52677401]
[1725554721439,19.083,131.01,130.94,391.2]
[1725554721620,0.8589171,131.04,130.94,391.2]
[1725554721621,7.6365,130.95,130.94,391.2]
[1725554721821,7.6371,130.94,130.89,420.2992]
[1725554722131,19.0861,130.99,130.89,420.2992]
[1725554722132,25.708,130.99,130.89,420.2992]
[1725554722433,7.6375,130.94,130.89,420.2992]
[1725554722611,7.6375,130.94,130.89,29.0992]
[1725554722813,20.0,130.93,130.89,6.2287]
[1725554723032,7.6387,130.92,130.88,19.101]
[1725554723262,20.0,130.93,130.86,14.1562]
[1725554723462,16.6219,130.99,130.83,14.1579]
[1725554723463,20.0,130.94,130.83,14.1579]
[1725554723730,7.6415,130.87,130.83,6.5145]